fUST/lending_fUST_20241008
["ID","MTS","AMOUNT","RATE_DAILY","PERIOD"]
[340024429,1728334304614,-500.0,0.00040273,120]
[340024430,1728334304623,-909.57,0.00040273,120]
[340024431,1728334304635,-699.58,0.00040273,120]
[340024432,1728334304647,-778.22,0.00040273,120]
[340024433,1728334304658,-1176.62,0.00040273,120]
[340024434,1728334304670,-538.25,0.00040273,120]
[340024435,1728334304682,-500.0,0.00040273,120]
[340024436,1728334304692,-500.0,0.00040273,120]
[340024437,1728334304703,-628.45,0.00040273,120]
[340024438,1728334304715,-500.0,0.00040273,120]
[340024439,1728334304725,-500.0,0.00040273,30]
[340024440,1728334304734,-585.34098141,0.00040273,120]
[340024441,1728334304744,-799.02,0.00040273,120]
[340024442,1728334304754,-1344.11,0.00040273,21]
[340024443,1728334304764,-500.0,0.00040273,120]
[340024444,1728334304774,-500.0,0.00040273,120]
[340024445,1728334304784,-1176.49,0.00040273,120]
[340024446,1728334304795,-538.89,0.00040273,120]
[340024447,1728334304805,-500.0,0.00040273,120]
[340024448,1728334304817,-500.0,0.00040273,120]
[340024449,1728334304826,-500.0,0.00040273,120]
[340024450,1728334304837,-500.0,0.00040273,120]
[340024451,1728334304847,-2556.51,0.00040273,120]
[340024452,1728334304859,-500.0,0.00040273,120]
[340024453,1728334304870,-500.0,0.00040273,120]
[340024454,1728334304881,-500.0,0.00040273,120]
[340024455,1728334304894,-500.0,0.00040273,120]
[340024456,1728334304904,-686.35,0.00040273,120]
[340024457,1728334304914,-500.0,0.00040273,120]
[340024458,1728334304925,-1127.5,0.00040273,120]
[340024459,1728334304936,-336.73,0.00040273,7]
[340024460,1728334304947,-618.33,0.00040273,120]
[340024461,1728334304957,-557.71,0.00040273,120]
[340024462,1728334304968,-554.61,0.00040273,120]
[340024463,1728334304979,-724.85,0.00040273,120]
[340024464,1728334304990,-252.58627576,0.00040273,120]
[340024465,1728334305000,-500.0,0.00040273,120]
[340024466,1728334305010,-500.0,0.00040273,120]
[340024467,1728334305020,-500.0,0.00040273,120]
[340024468,1728334305030,-500.0,0.00040273,120]
[340024469,1728334305040,-500.0,0.00040273,120]
[340024470,1728334305049,-500.0,0.00040273,120]
[340024471,1728334305059,-500.0,0.00040273,120]
[340024472,1728334305070,-500.0,0.00040273,120]
[340024473,1728334305079,-1000.0,0.00040273,120]
[340024474,1728334305089,-575.14,0.00040273,120]
[340024475,1728334305098,-500.0,0.00040273,120]
[340024476,1728334305107,-500.0,0.00040273,120]
[340024477,1728334305119,-500.0,0.00040273,120]
[340024478,1728334305129,-500.0,0.00040273,120]
[340024479,1728334305138,-501.94,0.00040273,120]
[340024480,1728334305147,-500.0,0.00040273,120]
[340024481,1728334305157,-557.73,0.00040273,120]
[340024482,1728334305167,-819.33,0.00040273,120]
[340024483,1728334305176,-500.0,0.00040273,120]
[340024484,1728334305186,-521.05,0.00040273,120]
[340024485,1728334305195,-1265.51,0.00040273,120]
[340024486,1728334305205,-518.1,0.00040273,120]
[340024487,1728334305215,-583.01,0.00040273,120]
[340024488,1728334305225,-500.0,0.00040273,120]
[340024489,1728334305234,-500.0,0.00040273,120]
[340024490,1728334305244,-500.0,0.00040273,120]
[340024491,1728334305253,-500.0,0.00040273,120]
[340024492,1728334305262,-500.0,0.00040273,120]
[340024493,1728334305272,-1208.8,0.00040273,120]
[340024494,1728334305282,-500.0,0.00040273,120]
[340024495,1728334305291,-500.0,0.00040273,120]
[340024496,1728334305300,-500.0,0.00040273,120]
[340024497,1728334305310,-500.0,0.00040273,120]
[340024498,1728334305319,-500.0,0.00040273,120]
[340024499,1728334305328,-618.94,0.00040273,120]
[340024500,1728334305338,-603.76582826,0.00040273,120]
[340024501,1728334305347,-500.0,0.00040273,120]
[340024502,1728334305356,-500.0,0.00040273,120]
[340024503,1728334305365,-500.0,0.00040273,120]
[340024504,1728334305375,-500.0,0.00040273,120]
[340024505,1728334305384,-718.42,0.00040273,120]
[340024506,1728334305394,-500.0,0.00040273,120]
[340024507,1728334305403,-705.43,0.00040273,120]
[340024508,1728334305412,-384.17239464,0.00040273,120]
[340024509,1728334305421,-500.0,0.00040273,120]
[340024510,1728334305431,-512.16,0.00040273,7]
[340024511,1728334305440,-1000.59,0.00040273,120]
[340024512,1728334305449,-500.0,0.00040273,120]
[340024513,1728334305458,-500.0,0.00040273,120]
[340024514,1728334305468,-500.0,0.00040273,120]
[340024515,1728334305478,-2499.96,0.00040273,120]
[340024516,1728334305487,-500.0,0.00040273,120]
[340024517,1728334305496,-500.0,0.00040273,120]
[340024518,1728334305505,-550.18,0.00040273,120]
[340024519,1728334305514,-500.0,0.00040273,120]
[340024520,1728334305652,-615.51,0.00040273,120]
[340024521,1728334305662,-500.0,0.00040273,120]
[340024522,1728334305672,-824.07,0.00040273,120]
[340024523,1728334305682,-500.0,0.00040273,120]
[340024524,1728334305693,-1097.32,0.00040273,120]
[340024525,1728334305705,-500.0,0.00040273,120]
[340024526,1728334305715,-500.0,0.00040273,120]
[340024527,1728334305725,-516.16,0.00040273,120]
[340024528,1728334305737,-500.0,0.00040273,120]
[340024529,1728334305747,-500.0,0.00040273,120]
[340024530,1728334305758,-500.0,0.00040273,120]
[340024531,1728334305768,-514.48,0.00040273,120]
[340024532,1728334305779,-500.0,0.00040273,120]
[340024533,1728334305790,-500.0,0.00040273,120]
[340024534,1728334305801,-584.54,0.00040273,120]
[340024535,1728334305812,-500.0,0.00040273,120]
[340024536,1728334305823,-502.32,0.00040273,120]
[340024537,1728334305834,-500.0,0.00040273,120]
[340024538,1728334305844,-500.0,0.00040273,120]
[340024539,1728334305855,-500.0,0.00040273,120]
[340024540,1728334305868,-200.0,0.00040273,120]
[340024541,1728334305878,-659.67,0.00040273,30]
[340024542,1728334305887,-843.64,0.00040273,120]
[340024543,1728334305897,-500.0,0.00040273,120]
[340024544,1728334305906,-826.06,0.00040273,120]
[340024545,1728334305916,-451.5802535,0.00040273,120]
[340024546,1728334305925,-844.53,0.00040273,120]
[340024547,1728334305935,-500.0,0.00040273,120]
[340024548,1728334305944,-500.0,0.00040273,120]
[340024549,1728334305954,-495.04330678,0.00040273,120]
[340024550,1728334305963,-500.0,0.00040273,120]
[340024551,1728334305973,-500.0,0.00040273,120]
[340024552,1728334305982,-397.27502008,0.00040273,120]
[340024553,1728334305993,-863.29,0.00040273,120]
[340024554,1728334306004,-714.69,0.00040273,120]
[340024555,1728334306015,-500.0,0.00040273,120]
[340024556,1728334306026,-500.0,0.00040273,120]
[340024557,1728334306038,-500.0,0.00040273,120]
[340024558,1728334306048,-500.0,0.00040273,120]
[340024559,1728334306058,-500.0,0.00040273,120]
[340024560,1728334306069,-537.33,0.00040273,120]
[340024561,1728334306078,-500.0,0.00040273,120]
[340024562,1728334306090,-501.19649601,0.00040273,120]
[340024563,1728334306100,-611.81,0.00040273,120]
[340024564,1728334306111,-500.0,0.00040273,120]
[340024565,1728334306125,-500.0,0.00040273,120]
[340024566,1728334306136,-500.0,0.00040273,120]
[340024567,1728334306147,-679.62,0.00040273,120]
[340024568,1728334306156,-500.0,0.00040273,120]
[340024569,1728334306166,-500.0,0.00040273,120]
[340024570,1728334306175,-769.77,0.00040273,120]
[340024571,1728334306184,-500.0,0.00040273,120]
[340024572,1728334306194,-944.22,0.00040273,120]
[340024573,1728334306204,-500.0,0.00040273,120]
[340024574,1728334306213,-514.42,0.00040273,120]
[340024575,1728334306222,-500.0,0.00040273,120]
[340024576,1728334306232,-500.0,0.00040273,120]
[340024577,1728334306244,-677.66,0.00040273,120]
[340024578,1728334306256,-3000.0,0.00040328,60]
[340024579,1728334306266,-1837.2,0.0004041,120]
[340024580,1728334306278,-1557.94,0.00040547,120]
[340024581,1728334306287,-500.0,0.00040547,120]
[340024582,1728334306296,-500.0,0.00040547,120]
[340024583,1728334306305,-878.3,0.00040547,120]
[340024584,1728334306315,-545.39,0.00040547,120]
[340024585,1728334306324,-500.0,0.00040547,120]
[340024586,1728334306334,-603.96,0.00040547,120]
[340024587,1728334306343,-500.0,0.00040547,120]
[340024588,1728334306352,-210.99916492,0.00040547,120]
[340024589,1728334306362,-491.06907704,0.00040547,120]
[340024590,1728334306371,-500.0,0.00040547,120]
[340024591,1728334306381,-500.0,0.00040547,90]
[340024592,1728334306390,-500.0,0.00040547,120]
[340024593,1728334306399,-800.19,0.00040547,120]
[340024594,1728334306409,-500.0,0.00040547,120]
[340024595,1728334306418,-751.04,0.00040547,120]
[340024596,1728334306427,-500.0,0.00040547,7]
[340024597,1728334306437,-500.0,0.00040547,120]
[340024598,1728334306446,-500.0,0.00040547,120]
[340024599,1728334306456,-841.21,0.00040547,120]
[340024600,1728334306466,-500.0,0.00040547,120]
[340024601,1728334306475,-500.0,0.00040547,120]
[340024602,1728334306484,-500.0,0.00040547,120]
[340024603,1728334306494,-500.0,0.00040547,120]
[340024604,1728334306503,-500.0,0.00040547,120]
[340024605,1728334306513,-612.78,0.00040547,120]
[340024606,1728334306522,-500.0,0.00040547,120]
[340024607,1728334306532,-500.0,0.00040547,120]
[340024608,1728334306541,-589.28,0.00040547,120]
[340024609,1728334306551,-500.0,0.00040547,120]
[340024610,1728334306560,-557.3,0.00040547,120]
[340024611,1728334306569,-500.0,0.00040547,120]
[340024612,1728334306578,-500.0,0.00040547,120]
[340024613,1728334306589,-500.0,0.00040547,120]
[340024614,1728334306600,-500.0,0.00040547,120]
[340024615,1728334306611,-500.0,0.00040547,120]
[340024616,1728334306622,-500.0,0.00040547,120]
[340024617,1728334306633,-500.0,0.00040547,120]
[340024618,1728334306645,-500.0,0.00040547,120]
[340024619,1728334306656,-500.0,0.00040547,120]
[340024620,1728334306667,-949.88,0.00040547,120]
[340024621,1728334306679,-660.6,0.00040547,120]
[340024622,1728334306690,-500.0,0.00040547,120]
[340024623,1728334306702,-500.0,0.00040547,120]
[340024624,1728334306714,-754.75,0.00040547,120]
[340024625,1728334306724,-500.0,0.00040547,120]
[340024626,1728334306735,-818.47,0.00040547,120]
[340024627,1728334306745,-500.0,0.00040547,120]
[340024628,1728334306755,-550.91,0.00040547,120]
[340024629,1728334306765,-622.43313362,0.00040547,120]
[340024630,1728334306776,-500.0,0.00040547,120]
[340024631,1728334306788,-625.1,0.00040547,120]
[340024632,1728334306799,-914.39,0.00040547,120]
[340024633,1728334306809,-500.0,0.00040547,120]
[340024634,1728334306820,-500.0,0.00040547,120]
[340024635,1728334306830,-500.0,0.00040547,120]
[340024636,1728334306842,-500.0,0.00040547,120]
[340024637,1728334306852,-500.0,0.00040547,120]
[340024638,1728334306863,-500.0,0.00040547,120]
[340024639,1728334306875,-500.0,0.00040547,120]
[340024640,1728334306886,-500.0,0.00040547,120]
[340024641,1728334306895,-500.0,0.00040547,120]
[340024642,1728334306906,-500.0,0.00040547,120]
[340024643,1728334306916,-500.0,0.00040547,120]
[340024644,1728334306925,-1047.98,0.00040547,120]
[340024645,1728334306936,-500.0,0.00040547,120]
[340024646,1728334306946,-500.0,0.00040547,120]
[340024647,1728334306959,-683.38,0.00040547,120]
[340024648,1728334306969,-500.0,0.00040547,120]
[340024649,1728334306978,-500.0,0.00040547,120]
[340024650,1728334306988,-500.0,0.00040547,120]
[340024651,1728334306997,-1235.61,0.00040547,120]
[340024652,1728334307007,-1137.42,0.00040547,120]
[340024653,1728334307017,-500.0,0.00040547,120]
[340024654,1728334307028,-500.0,0.00040547,120]
[340024655,1728334307039,-500.0,0.00040547,120]
[340024656,1728334307050,-500.0,0.00040547,120]
[340024657,1728334307060,-500.0,0.00040547,120]
[340024658,1728334307071,-575.41,0.00040547,120]
[340024659,1728334307084,-500.0,0.00040547,120]
[340024660,1728334307095,-229.3337446,0.00040547,120]
[340024661,1728334307107,-579.31082119,0.00040547,120]
[340024662,1728334307122,-500.0,0.00040547,120]
[340024663,1728334307132,-500.0,0.00040547,120]
[340024664,1728334307143,-800.54,0.00040547,120]
[340024665,1728334307155,-500.0,0.00040547,120]
[340024666,1728334307165,-709.12,0.00040547,120]
[340024667,1728334307175,-711.22,0.00040547,120]
[340024668,1728334307187,-500.0,0.00040547,120]
[340024669,1728334307198,-550.77,0.00040547,120]
[340024670,1728334307209,-500.0,0.00040547,120]
[340024671,1728334307220,-500.0,0.00040547,120]
[340024672,1728334307229,-744.73,0.00040547,120]
[340024673,1728334307239,-500.0,0.00040547,120]
[340024674,1728334307249,-750.18,0.00040547,120]
[340024675,1728334307259,-500.0,0.00040547,120]
[340024676,1728334307268,-500.0,0.00040547,120]
[340024677,1728334307278,-607.18,0.00040547,120]
[340024678,1728334307289,-1202.82,0.00040547,120]
[340024679,1728334307300,-500.0,0.00040547,120]
[340024680,1728334307312,-500.0,0.00040547,120]
[340024681,1728334307323,-426.24302924,0.00040547,120]
[340024682,1728334307335,-1170.58,0.00040547,120]
[340024683,1728334307345,-500.0,0.00040547,120]
[340024684,1728334307355,-500.0,0.00040547,120]
[340024685,1728334307366,-637.28,0.00040547,120]
[340024686,1728334307376,-500.0,0.00040547,120]
[340024687,1728334307390,-500.0,0.00040547,120]
[340024688,1728334307400,-1008.72,0.00040547,120]
[340024689,1728334307410,-500.0,0.00040547,120]
[340024690,1728334307420,-576.24,0.00040547,120]
[340024691,1728334307431,-787.72,0.00040547,120]
[340024692,1728334307441,-500.0,0.00040547,120]
[340024693,1728334307450,-687.3,0.00040547,120]
[340024694,1728334307462,-500.0,0.00040547,120]
[340024695,1728334307473,-917.09,0.00040547,120]
[340024696,1728334307483,-500.0,0.00040547,120]
[340024697,1728334307494,-500.0,0.00040547,120]
[340024698,1728334307503,-500.0,0.00040547,120]
[340024699,1728334307513,-1008.32,0.00040547,120]
[340024700,1728334307521,-1051.57,0.00040547,120]
[340024701,1728334307531,-500.0,0.00040547,120]
[340024702,1728334307540,-677.92,0.00040547,120]
[340024703,1728334307549,-500.0,0.00040547,2]
[340024704,1728334307558,-500.0,0.00040547,120]
[340024705,1728334307568,-529.97,0.00040547,120]
[340024706,1728334307577,-500.0,0.00040547,120]
[340024707,1728334307586,-1141.57,0.00040547,120]
[340024708,1728334307596,-954.06,0.00040547,120]
[340024709,1728334307606,-500.0,0.00040547,120]
[340024710,1728334307616,-865.56,0.00040547,120]
[340024711,1728334307625,-818.05,0.00040547,120]
[340024712,1728334307635,-500.0,0.00040547,120]
[340024713,1728334307645,-370.37071739,0.00040547,120]
[340024714,1728334307655,-647.55,0.00040547,120]
[340024715,1728334307665,-504.35,0.00040547,120]
[340024716,1728334307675,-500.0,0.00040547,120]
[340024717,1728334307686,-851.04,0.00040547,120]
[340024718,1728334307699,-500.0,0.00040547,120]
[340024719,1728334307711,-523.84,0.00040547,120]
[340024720,1728334307722,-757.96,0.00040547,30]
[340024721,1728334307731,-500.0,0.00040547,120]
[340024722,1728334307741,-563.6,0.00040547,120]
[340024723,1728334307751,-555.29,0.00040547,120]
[340024724,1728334307762,-500.0,0.00040547,120]
[340024725,1728334307775,-500.0,0.00040547,120]
[340024726,1728334307785,-500.0,0.00040547,120]
[340024727,1728334307796,-500.0,0.00040547,120]
[340024728,1728334307807,-226.30481648,0.00040547,120]
[340024729,1728334307818,-500.0,0.00040547,120]
[340024730,1728334307828,-500.0,0.00040547,120]
[340024731,1728334307840,-500.0,0.00040547,120]
[340024732,1728334307851,-743.56,0.00040547,120]
[340024733,1728334307862,-754.92,0.00040547,120]
[340024734,1728334307874,-1365.58,0.00040547,120]
[340024735,1728334307885,-500.0,0.00040547,120]
[340024736,1728334307895,-500.0,0.00040547,120]
[340024737,1728334307906,-623.42,0.00040547,120]
[340024738,1728334307916,-500.0,0.00040547,120]
[340024739,1728334307926,-861.29,0.00040547,120]
[340024740,1728334307936,-500.0,0.00040547,120]
[340024741,1728334307947,-573.92,0.00040547,120]
[340024742,1728334307958,-555.73,0.00040547,120]
[340024743,1728334307976,-917.57,0.00040547,120]
[340024744,1728334307985,-500.0,0.00040547,120]
[340024745,1728334307995,-500.0,0.00040547,120]
[340024746,1728334308004,-500.0,0.00040547,120]
[340024747,1728334308014,-544.85,0.00040547,120]
[340024748,1728334308023,-500.0,0.00040547,120]
[340024749,1728334308033,-571.4,0.00040547,60]
[340024750,1728334308042,-500.0,0.00040547,120]
[340024751,1728334308052,-719.55,0.00040547,120]
[340024752,1728334308062,-640.61,0.00040547,120]
[340024753,1728334308073,-500.0,0.00040547,120]
[340024754,1728334308082,-500.0,0.00040547,120]
[340024755,1728334308091,-918.63,0.00040547,120]
[340024756,1728334308103,-812.73,0.00040547,120]
[340024757,1728334308114,-500.0,0.00040547,120]
[340024758,1728334308126,-157.34599857,0.00040547,120]
[340024759,1728334308136,-500.0,0.00040547,120]
[340024760,1728334308146,-500.0,0.00040547,120]
[340024761,1728334308155,-502.3,0.00040547,120]
[340024762,1728334308165,-318.25554977,0.00040547,120]
[340024763,1728334308175,-500.0,0.00040547,120]
[340024764,1728334308185,-708.61,0.00040547,120]
[340024765,1728334308196,-537.44,0.00040547,120]
[340024766,1728334308206,-500.0,0.00040547,120]
[340024767,1728334308216,-610.21,0.00040547,120]
[340024768,1728334308226,-554.6,0.00040547,120]
[340024769,1728334308236,-500.0,0.00040547,120]
[340024770,1728334308245,-500.0,0.00040547,120]
[340024771,1728334308254,-500.0,0.00040547,120]
[340024772,1728334308263,-500.0,0.00040547,120]
[340024773,1728334308273,-500.0,0.00040547,120]
[340024774,1728334308283,-500.0,0.00040547,120]
[340024775,1728334308293,-500.0,0.00040547,120]
[340024776,1728334308302,-760.72,0.00040547,120]
[340024777,1728334308312,-500.0,0.00040547,120]
[340024778,1728334308322,-500.0,0.00040547,120]
[340024779,1728334308331,-505.93,0.00040547,120]
[340024780,1728334308342,-500.0,0.00040547,120]
[340024781,1728334308352,-579.67,0.00040547,120]
[340024782,1728334308362,-500.0,0.00040547,120]
[340024783,1728334308372,-500.0,0.00040547,120]
[340024784,1728334308383,-500.0,0.00040547,120]
[340024785,1728334308393,-909.57,0.00040547,120]
[340024786,1728334308403,-699.58,0.00040547,120]
[340024787,1728334308414,-778.22,0.00040547,120]
[340024788,1728334308423,-1176.62,0.00040547,120]
[340024789,1728334308434,-538.25,0.00040547,120]
[340024790,1728334308444,-500.0,0.00040547,120]
[340024791,1728334308456,-500.0,0.00040547,120]
[340024792,1728334308466,-628.45,0.00040547,120]
[340024793,1728334308475,-500.0,0.00040547,120]
[340024794,1728334308485,-500.0,0.00040547,30]
[340024795,1728334308496,-799.02,0.00040547,120]
[340024796,1728334308505,-1344.11,0.00040547,21]
[340024797,1728334308516,-500.0,0.00040547,120]
[340024798,1728334308525,-500.0,0.00040547,120]
[340024799,1728334308535,-1176.49,0.00040547,120]
[340024800,1728334308545,-538.89,0.00040547,120]
[340024801,1728334308555,-500.0,0.00040547,120]
[340024802,1728334308566,-500.0,0.00040547,120]
[340024803,1728334308576,-500.0,0.00040547,120]
[340024804,1728334308586,-500.0,0.00040547,120]
[340024805,1728334308596,-2556.51,0.00040547,120]
[340024806,1728334308606,-500.0,0.00040547,120]
[340024807,1728334308617,-151.59729152,0.00040547,120]
[340024808,1728334308627,-500.0,0.00040547,120]
[340024809,1728334308637,-500.0,0.00040547,120]
[340024810,1728334308646,-686.35,0.00040547,120]
[340024811,1728334308656,-500.0,0.00040547,120]
[340024812,1728334308665,-1127.5,0.00040547,120]
[340024813,1728334308674,-336.73,0.00040547,7]
[340024814,1728334308684,-618.33,0.00040547,120]
[340024815,1728334308693,-557.71,0.00040547,120]
[340024816,1728334308703,-554.61,0.00040547,120]
[340024817,1728334308713,-724.85,0.00040547,120]
[340024818,1728334308723,-500.0,0.00040547,120]
[340024819,1728334308733,-500.0,0.00040547,120]
[340024820,1728334308743,-500.0,0.00040547,120]
[340024821,1728334308753,-500.0,0.00040547,120]
[340024822,1728334308763,-500.0,0.00040547,120]
[340024823,1728334308773,-500.0,0.00040547,120]
[340024824,1728334308782,-500.0,0.00040547,120]
[340024825,1728334308792,-500.0,0.00040547,120]
[340024826,1728334308801,-1000.0,0.00040547,120]
[340024827,1728334308811,-575.14,0.00040547,120]
[340024828,1728334308821,-500.0,0.00040547,120]
[340024829,1728334308831,-500.0,0.00040547,120]
[340024830,1728334308840,-408.27153116,0.00040547,120]
[340024831,1728334308850,-500.0,0.00040547,120]
[340024832,1728334308859,-501.94,0.00040547,120]
[340024833,1728334308869,-500.0,0.00040547,120]
[340024834,1728334308878,-557.73,0.00040547,120]
[340024835,1728334308889,-819.33,0.00040547,120]
[340024836,1728334308899,-251.9016652,0.00040547,120]
[340024837,1728334308909,-521.05,0.00040547,120]
[340024838,1728334308918,-1265.51,0.00040547,120]
[340024839,1728334308928,-518.1,0.00040547,120]
[340024840,1728334308938,-583.01,0.00040547,120]
[340024841,1728334308947,-500.0,0.00040547,120]
[340024842,1728334308957,-500.0,0.00040547,120]
[340024843,1728334308967,-500.0,0.00040547,120]
[340024844,1728334308977,-500.0,0.00040547,120]
[340024845,1728334308987,-500.0,0.00040547,120]
[340024846,1728334308997,-1208.8,0.00040547,120]
[340024847,1728334309008,-500.0,0.00040547,120]
[340024848,1728334309017,-500.0,0.00040547,120]
[340024849,1728334309027,-500.0,0.00040547,120]
[340024850,1728334309037,-446.6792171,0.00040547,120]
[340024851,1728334309046,-500.0,0.00040547,120]
[340024852,1728334309055,-618.94,0.00040547,120]
[340024853,1728334309065,-500.0,0.00040547,120]
[340024854,1728334309074,-348.5434412,0.00040547,120]
[340024855,1728334309084,-500.0,0.00040547,120]
[340024856,1728334309095,-500.0,0.00040547,120]
[340024857,1728334309105,-718.42,0.00040547,120]
[340024858,1728334309117,-256.30622171,0.00040547,120]
[340024859,1728334309127,-705.43,0.00040547,120]
[340024860,1728334309137,-500.0,0.00040547,120]
[340024861,1728334309147,-512.16,0.00040547,7]
[340024862,1728334309157,-500.0,0.00040547,120]
[340024863,1728334309168,-1000.59,0.00040547,120]
[340024864,1728334309178,-500.0,0.00040547,120]
[340024865,1728334309189,-500.0,0.00040547,120]
[340024866,1728334309199,-2499.96,0.00040547,120]
[340024867,1728334309209,-500.0,0.00040547,120]
[340024868,1728334309219,-500.0,0.00040547,120]
[340024869,1728334309228,-550.18,0.00040547,120]
[340024870,1728334309238,-615.51,0.00040547,120]
[340024871,1728334309248,-500.0,0.00040547,120]
[340024872,1728334309258,-500.0,0.00040547,120]
[340024873,1728334309268,-824.07,0.00040547,120]
[340024874,1728334309278,-500.0,0.00040547,120]
[340024875,1728334309288,-1097.32,0.00040547,120]
[340024876,1728334309298,-500.0,0.00040547,120]
[340024877,1728334309307,-500.0,0.00040547,120]
[340024878,1728334309317,-516.16,0.00040547,120]
[340024879,1728334309326,-500.0,0.00040547,120]
[340024880,1728334309335,-500.0,0.00040547,120]
[340024881,1728334309345,-500.0,0.00040547,120]
[340024882,1728334309355,-514.48,0.00040547,120]
[340024883,1728334309364,-500.0,0.00040547,120]
[340024884,1728334309374,-500.0,0.00040547,120]
[340024885,1728334309384,-584.54,0.00040547,120]
[340024886,1728334309394,-500.0,0.00040547,120]
[340024887,1728334309403,-502.32,0.00040547,120]
[340024888,1728334309413,-500.0,0.00040547,120]
[340024889,1728334309423,-500.0,0.00040547,120]
[340024890,1728334309433,-500.0,0.00040547,120]
[340024891,1728334309443,-200.0,0.00040547,120]
[340024892,1728334309452,-659.67,0.00040547,30]
[340024893,1728334309462,-843.64,0.00040547,120]
[340024894,1728334309472,-500.0,0.00040547,120]
[340024895,1728334309483,-826.06,0.00040547,120]
[340024896,1728334309493,-844.53,0.00040547,120]
[340024897,1728334309503,-500.0,0.00040547,120]
[340024898,1728334309514,-500.0,0.00040547,120]
[340024899,1728334309524,-500.0,0.00040547,120]
[340024900,1728334309534,-500.0,0.00040547,120]
[340024901,1728334309544,-863.29,0.00040547,120]
[340024902,1728334309553,-714.69,0.00040547,120]
[340024903,1728334309563,-500.0,0.00040547,120]
[340024904,1728334309573,-500.0,0.00040547,120]
[340024905,1728334309583,-500.0,0.00040547,120]
[340024906,1728334309593,-500.0,0.00040547,120]
[340024907,1728334309602,-500.0,0.00040547,120]
[340024908,1728334309612,-537.33,0.00040547,120]
[340024909,1728334309622,-500.0,0.00040547,120]
[340024910,1728334309631,-611.81,0.00040547,120]
[340024911,1728334309641,-500.0,0.00040547,120]
[340024912,1728334309651,-500.0,0.00040547,120]
[340024913,1728334309660,-288.46900048,0.00040547,120]
[340024914,1728334309670,-679.62,0.00040547,120]
[340024915,1728334309679,-500.0,0.00040547,120]
[340024916,1728334309689,-500.0,0.00040547,120]
[340024917,1728334309699,-769.77,0.00040547,120]
[340024918,1728334309709,-500.0,0.00040547,120]
[340024919,1728334309719,-944.22,0.00040547,120]
[340024920,1728334309729,-500.0,0.00040547,120]
[340024921,1728334309738,-514.42,0.00040547,120]
[340024922,1728334309748,-500.0,0.00040547,120]
[340024923,1728334309757,-500.0,0.00040547,120]
[340024924,1728334309767,-677.66,0.00040547,120]
[340024925,1728334309777,-152.0,0.00040578,15]
[340024926,1728334309786,-7692.07458484,0.00040721,28]
[340024927,1728334309796,-501404.32068685,0.00040767,90]
[340024928,1728334309805,-1557.94,0.00040821,120]